Workbook

Sheet Αποτίμηση
B2: Approximation of the value of the Bermudan Call Warrant
B3: Α. | C3: Valuation Parameters
C4: Stock Price | E4: 0.568 | H4: Risk Free Rate | M4: 0.0125
C5: Initial Strike Price (Offer Price) | E5: 0.44 | H5: Annualised Volatility | M5: 0.45
C6: Number of shares per Warrant | E6: 7.33
B8: Β. | C8: Warrant Valuation
C9: Bermudan Warrant Valuation (CRR model with adjustments) | E9: =crrbinomialbermudan_n("b","c", E4, E5, H48/360, $M$4, $M$4,$M$5, 100,$H$40, $H$41, $H$42, $H$43,$H$44, $H$45, $H$46,$H$47, $H$48, $K$40, $K$41, $K$42, $K$43, $K$44, $K$45, $K$46, $K$47, $K$48)*E6 -> 1.683204048 | G9: Bermudan Warrant Valuation (as maximum of 9 European Warrants) | M9: =MAX(L40:L48)*E6 -> 1.634109651 | T9: Version 1.0 - 16/05/2013
B11: C. | C11: Bermudan Call Warrant Sensitivity Analysis on parameters(valuation from CRR model with adjustments) | Q11: D. | R11: Graph representation of the Warrant Value
C12: Risk free rate step | E12: 0.0025 | G12: Volatility step | M12: 0.05
C14: Valuation Matrix | D14: Annualised Volatility
C15: Risk Free Rate | D15: =MAX(0.0001,E15-$M$12) -> 0.2 | E15: =MAX(0.0001,F15-$M$12) -> 0.25 | F15: =MAX(0.0001,G15-$M$12) -> 0.3 | G15: =MAX(0.0001,H15-$M$12) -> 0.35 | H15: =MAX(0.0001,I15-$M$12) -> 0.4 | I15: =M5 -> 0.45 | K15: =I15+$M$12 -> 0.5 | L15: =K15+$M$12 -> 0.55 | M15: =L15+$M$12 -> 0.6 | N15: =M15+$M$12 -> 0.65 | O15: =N15+$M$12 -> 0.7
C16: =MAX(C17-$E$12,0) -> 0.0025 | D16: =$E$6*crrbinomialbermudan_n("b","c", $E$4, $E$5, $H$48/360, $C$16, $C$16,D$15, 100,$H$40, $H$41, $H$42, $H$43,$H$44, $H$45, $H$46,$H$47, $H$48, $K$40, $K$41, $K$42, $K$43, $K$44, $K$45, $K$46, $K$47, $K$48) -> 0.9734046068 | E16: 1.08428237 | F16: 1.214787503 | G16: 1.353577777 | H16: 1.495245633 | I16: 1.637603003 | K16: =$E$6*crrbinomialbermudan_n("b","c", $E$4, $E$5, $H$48/360, $C$16, $C$16,K$15, 100,$H$40, $H$41, $H$42, $H$43,$H$44, $H$45, $H$46,$H$47, $H$48, $K$40, $K$41, $K$42, $K$43, $K$44, $K$45, $K$46, $K$47, $K$48) -> 1.779977006 | L16: =$E$6*crrbinomialbermudan_n("b","c", $E$4, $E$5, $H$48/360, $C$16, $C$16,L$15, 100,$H$40, $H$41, $H$42, $H$43,$H$44, $H$45, $H$46,$H$47, $H$48, $K$40, $K$41, $K$42, $K$43, $K$44, $K$45, $K$46, $K$47, $K$48) -> 1.91969419 | M16: =$E$6*crrbinomialbermudan_n("b","c", $E$4, $E$5, $H$48/360, $C$16, $C$16,M$15, 100,$H$40, $H$41, $H$42, $H$43,$H$44, $H$45, $H$46,$H$47, $H$48, $K$40, $K$41, $K$42, $K$43, $K$44, $K$45, $K$46, $K$47, $K$48) -> 2.0554201 | N16: =$E$6*crrbinomialbermudan_n("b","c", $E$4, $E$5, $H$48/360, $C$16, $C$16,N$15, 100,$H$40, $H$41, $H$42, $H$43,$H$44, $H$45, $H$46,$H$47, $H$48, $K$40, $K$41, $K$42, $K$43, $K$44, $K$45, $K$46, $K$47, $K$48) -> 2.188353633 | O16: =$E$6*crrbinomialbermudan_n("b","c", $E$4, $E$5, $H$48/360, $C$16, $C$16,O$15, 100,$H$40, $H$41, $H$42, $H$43,$H$44, $H$45, $H$46,$H$47, $H$48, $K$40, $K$41, $K$42, $K$43, $K$44, $K$45, $K$46, $K$47, $K$48) -> 2.317384721
C17: =MAX(C18-$E$12,0) -> 0.005 | D17: =$E$6*crrbinomialbermudan_n("b","c", $E$4, $E$5, $H$48/360, $C$17, $C$17,D$15, 100,$H$40, $H$41, $H$42, $H$43,$H$44, $H$45, $H$46,$H$47, $H$48, $K$40, $K$41, $K$42, $K$43, $K$44, $K$45, $K$46, $K$47, $K$48) -> 0.9814416835 | E17: 1.09417735 | F17: 1.225402633 | G17: 1.364680979 | H17: 1.506437116 | I17: 1.648633718 | K17: =$E$6*crrbinomialbermudan_n("b","c", $E$4, $E$5, $H$48/360, $C$17, $C$17,K$15, 100,$H$40, $H$41, $H$42, $H$43,$H$44, $H$45, $H$46,$H$47, $H$48, $K$40, $K$41, $K$42, $K$43, $K$44, $K$45, $K$46, $K$47, $K$48) -> 1.790908043 | L17: =$E$6*crrbinomialbermudan_n("b","c", $E$4, $E$5, $H$48/360, $C$17, $C$17,L$15, 100,$H$40, $H$41, $H$42, $H$43,$H$44, $H$45, $H$46,$H$47, $H$48, $K$40, $K$41, $K$42, $K$43, $K$44, $K$45, $K$46, $K$47, $K$48) -> 1.929903362 | M17: =$E$6*crrbinomialbermudan_n("b","c", $E$4, $E$5, $H$48/360, $C$17, $C$17,M$15, 100,$H$40, $H$41, $H$42, $H$43,$H$44, $H$45, $H$46,$H$47, $H$48, $K$40, $K$41, $K$42, $K$43, $K$44, $K$45, $K$46, $K$47, $K$48) -> 2.065264635 | N17: =$E$6*crrbinomialbermudan_n("b","c", $E$4, $E$5, $H$48/360, $C$17, $C$17,N$15, 100,$H$40, $H$41, $H$42, $H$43,$H$44, $H$45, $H$46,$H$47, $H$48, $K$40, $K$41, $K$42, $K$43, $K$44, $K$45, $K$46, $K$47, $K$48) -> 2.197855975 | O17: =$E$6*crrbinomialbermudan_n("b","c", $E$4, $E$5, $H$48/360, $C$17, $C$17,O$15, 100,$H$40, $H$41, $H$42, $H$43,$H$44, $H$45, $H$46,$H$47, $H$48, $K$40, $K$41, $K$42, $K$43, $K$44, $K$45, $K$46, $K$47, $K$48) -> 2.326391885
C18: =MAX(C19-$E$12,0) -> 0.0075 | D18: =$E$6*crrbinomialbermudan_n("b","c", $E$4, $E$5, $H$48/360, $C$18, $C$18,D$15, 100,$H$40, $H$41, $H$42, $H$43,$H$44, $H$45, $H$46,$H$47, $H$48, $K$40, $K$41, $K$42, $K$43, $K$44, $K$45, $K$46, $K$47, $K$48) -> 0.9898705905 | E18: 1.104317451 | F18: 1.236613765 | G18: 1.376079857 | H18: 1.517639278 | I18: 1.660051097 | K18: =$E$6*crrbinomialbermudan_n("b","c", $E$4, $E$5, $H$48/360, $C$18, $C$18,K$15, 100,$H$40, $H$41, $H$42, $H$43,$H$44, $H$45, $H$46,$H$47, $H$48, $K$40, $K$41, $K$42, $K$43, $K$44, $K$45, $K$46, $K$47, $K$48) -> 1.801812954 | L18: =$E$6*crrbinomialbermudan_n("b","c", $E$4, $E$5, $H$48/360, $C$18, $C$18,L$15, 100,$H$40, $H$41, $H$42, $H$43,$H$44, $H$45, $H$46,$H$47, $H$48, $K$40, $K$41, $K$42, $K$43, $K$44, $K$45, $K$46, $K$47, $K$48) -> 1.940085451 | M18: =$E$6*crrbinomialbermudan_n("b","c", $E$4, $E$5, $H$48/360, $C$18, $C$18,M$15, 100,$H$40, $H$41, $H$42, $H$43,$H$44, $H$45, $H$46,$H$47, $H$48, $K$40, $K$41, $K$42, $K$43, $K$44, $K$45, $K$46, $K$47, $K$48) -> 2.075287282 | N18: =$E$6*crrbinomialbermudan_n("b","c", $E$4, $E$5, $H$48/360, $C$18, $C$18,N$15, 100,$H$40, $H$41, $H$42, $H$43,$H$44, $H$45, $H$46,$H$47, $H$48, $K$40, $K$41, $K$42, $K$43, $K$44, $K$45, $K$46, $K$47, $K$48) -> 2.207461443 | O18: =$E$6*crrbinomialbermudan_n("b","c", $E$4, $E$5, $H$48/360, $C$18, $C$18,O$15, 100,$H$40, $H$41, $H$42, $H$43,$H$44, $H$45, $H$46,$H$47, $H$48, $K$40, $K$41, $K$42, $K$43, $K$44, $K$45, $K$46, $K$47, $K$48) -> 2.335373449
C19: =MAX(C20-$E$12,0) -> 0.01 | D19: =$E$6*crrbinomialbermudan_n("b","c", $E$4, $E$5, $H$48/360, $C$19, $C$19,D$15, 100,$H$40, $H$41, $H$42, $H$43,$H$44, $H$45, $H$46,$H$47, $H$48, $K$40, $K$41, $K$42, $K$43, $K$44, $K$45, $K$46, $K$47, $K$48) -> 0.9983875436 | E19: 1.115270244 | F19: 1.248172165 | G19: 1.387489901 | H19: 1.529066159 | I19: 1.67157465 | K19: =$E$6*crrbinomialbermudan_n("b","c", $E$4, $E$5, $H$48/360, $C$19, $C$19,K$15, 100,$H$40, $H$41, $H$42, $H$43,$H$44, $H$45, $H$46,$H$47, $H$48, $K$40, $K$41, $K$42, $K$43, $K$44, $K$45, $K$46, $K$47, $K$48) -> 1.812690916 | L19: =$E$6*crrbinomialbermudan_n("b","c", $E$4, $E$5, $H$48/360, $C$19, $C$19,L$15, 100,$H$40, $H$41, $H$42, $H$43,$H$44, $H$45, $H$46,$H$47, $H$48, $K$40, $K$41, $K$42, $K$43, $K$44, $K$45, $K$46, $K$47, $K$48) -> 1.950265293 | M19: =$E$6*crrbinomialbermudan_n("b","c", $E$4, $E$5, $H$48/360, $C$19, $C$19,M$15, 100,$H$40, $H$41, $H$42, $H$43,$H$44, $H$45, $H$46,$H$47, $H$48, $K$40, $K$41, $K$42, $K$43, $K$44, $K$45, $K$46, $K$47, $K$48) -> 2.085419206 | N19: =$E$6*crrbinomialbermudan_n("b","c", $E$4, $E$5, $H$48/360, $C$19, $C$19,N$15, 100,$H$40, $H$41, $H$42, $H$43,$H$44, $H$45, $H$46,$H$47, $H$48, $K$40, $K$41, $K$42, $K$43, $K$44, $K$45, $K$46, $K$47, $K$48) -> 2.217073054 | O19: =$E$6*crrbinomialbermudan_n("b","c", $E$4, $E$5, $H$48/360, $C$19, $C$19,O$15, 100,$H$40, $H$41, $H$42, $H$43,$H$44, $H$45, $H$46,$H$47, $H$48, $K$40, $K$41, $K$42, $K$43, $K$44, $K$45, $K$46, $K$47, $K$48) -> 2.344350486
C20: =M4 -> 0.0125 | D20: =$E$6*crrbinomialbermudan_n("b","c", $E$4, $E$5, $H$48/360, $C$20, $C$20,D$15, 100,$H$40, $H$41, $H$42, $H$43,$H$44, $H$45, $H$46,$H$47, $H$48, $K$40, $K$41, $K$42, $K$43, $K$44, $K$45, $K$46, $K$47, $K$48) -> 1.008011932 | E20: 1.126165714 | F20: 1.259796782 | G20: 1.399091773 | H20: 1.540621837 | I20: 1.683204048 | K20: =$E$6*crrbinomialbermudan_n("b","c", $E$4, $E$5, $H$48/360, $C$20, $C$20,K$15, 100,$H$40, $H$41, $H$42, $H$43,$H$44, $H$45, $H$46,$H$47, $H$48, $K$40, $K$41, $K$42, $K$43, $K$44, $K$45, $K$46, $K$47, $K$48) -> 1.823541112 | L20: =$E$6*crrbinomialbermudan_n("b","c", $E$4, $E$5, $H$48/360, $C$20, $C$20,L$15, 100,$H$40, $H$41, $H$42, $H$43,$H$44, $H$45, $H$46,$H$47, $H$48, $K$40, $K$41, $K$42, $K$43, $K$44, $K$45, $K$46, $K$47, $K$48) -> 1.960736966 | M20: =$E$6*crrbinomialbermudan_n("b","c", $E$4, $E$5, $H$48/360, $C$20, $C$20,M$15, 100,$H$40, $H$41, $H$42, $H$43,$H$44, $H$45, $H$46,$H$47, $H$48, $K$40, $K$41, $K$42, $K$43, $K$44, $K$45, $K$46, $K$47, $K$48) -> 2.095546143 | N20: =$E$6*crrbinomialbermudan_n("b","c", $E$4, $E$5, $H$48/360, $C$20, $C$20,N$15, 100,$H$40, $H$41, $H$42, $H$43,$H$44, $H$45, $H$46,$H$47, $H$48, $K$40, $K$41, $K$42, $K$43, $K$44, $K$45, $K$46, $K$47, $K$48) -> 2.226658446 | O20: =$E$6*crrbinomialbermudan_n("b","c", $E$4, $E$5, $H$48/360, $C$20, $C$20,O$15, 100,$H$40, $H$41, $H$42, $H$43,$H$44, $H$45, $H$46,$H$47, $H$48, $K$40, $K$41, $K$42, $K$43, $K$44, $K$45, $K$46, $K$47, $K$48) -> 2.353337259
C21: =C20+$E$12 -> 0.015 | D21: =$E$6*crrbinomialbermudan_n("b","c", $E$4, $E$5, $H$48/360, $C$21, $C$21,D$15, 100,$H$40, $H$41, $H$42, $H$43,$H$44, $H$45, $H$46,$H$47, $H$48, $K$40, $K$41, $K$42, $K$43, $K$44, $K$45, $K$46, $K$47, $K$48) -> 1.01804959 | E21: 1.137531619 | F21: 1.271483286 | G21: 1.41103746 | H21: 1.552382602 | I21: 1.694805854 | K21: =$E$6*crrbinomialbermudan_n("b","c", $E$4, $E$5, $H$48/360, $C$21, $C$21,K$15, 100,$H$40, $H$41, $H$42, $H$43,$H$44, $H$45, $H$46,$H$47, $H$48, $K$40, $K$41, $K$42, $K$43, $K$44, $K$45, $K$46, $K$47, $K$48) -> 1.834362759 | L21: =$E$6*crrbinomialbermudan_n("b","c", $E$4, $E$5, $H$48/360, $C$21, $C$21,L$15, 100,$H$40, $H$41, $H$42, $H$43,$H$44, $H$45, $H$46,$H$47, $H$48, $K$40, $K$41, $K$42, $K$43, $K$44, $K$45, $K$46, $K$47, $K$48) -> 1.97139941 | M21: =$E$6*crrbinomialbermudan_n("b","c", $E$4, $E$5, $H$48/360, $C$21, $C$21,M$15, 100,$H$40, $H$41, $H$42, $H$43,$H$44, $H$45, $H$46,$H$47, $H$48, $K$40, $K$41, $K$42, $K$43, $K$44, $K$45, $K$46, $K$47, $K$48) -> 2.105796853 | N21: =$E$6*crrbinomialbermudan_n("b","c", $E$4, $E$5, $H$48/360, $C$21, $C$21,N$15, 100,$H$40, $H$41, $H$42, $H$43,$H$44, $H$45, $H$46,$H$47, $H$48, $K$40, $K$41, $K$42, $K$43, $K$44, $K$45, $K$46, $K$47, $K$48) -> 2.236224268 | O21: =$E$6*crrbinomialbermudan_n("b","c", $E$4, $E$5, $H$48/360, $C$21, $C$21,O$15, 100,$H$40, $H$41, $H$42, $H$43,$H$44, $H$45, $H$46,$H$47, $H$48, $K$40, $K$41, $K$42, $K$43, $K$44, $K$45, $K$46, $K$47, $K$48) -> 2.362328298
C22: =C21+$E$12 -> 0.0175 | D22: =$E$6*crrbinomialbermudan_n("b","c", $E$4, $E$5, $H$48/360, $C$22, $C$22,D$15, 100,$H$40, $H$41, $H$42, $H$43,$H$44, $H$45, $H$46,$H$47, $H$48, $K$40, $K$41, $K$42, $K$43, $K$44, $K$45, $K$46, $K$47, $K$48) -> 1.028148435 | E22: 1.148966174 | F22: 1.283442489 | G22: 1.422948611 | H22: 1.564613872 | I22: 1.706378979 | K22: =$E$6*crrbinomialbermudan_n("b","c", $E$4, $E$5, $H$48/360, $C$22, $C$22,K$15, 100,$H$40, $H$41, $H$42, $H$43,$H$44, $H$45, $H$46,$H$47, $H$48, $K$40, $K$41, $K$42, $K$43, $K$44, $K$45, $K$46, $K$47, $K$48) -> 1.845242583 | L22: =$E$6*crrbinomialbermudan_n("b","c", $E$4, $E$5, $H$48/360, $C$22, $C$22,L$15, 100,$H$40, $H$41, $H$42, $H$43,$H$44, $H$45, $H$46,$H$47, $H$48, $K$40, $K$41, $K$42, $K$43, $K$44, $K$45, $K$46, $K$47, $K$48) -> 1.982174679 | M22: =$E$6*crrbinomialbermudan_n("b","c", $E$4, $E$5, $H$48/360, $C$22, $C$22,M$15, 100,$H$40, $H$41, $H$42, $H$43,$H$44, $H$45, $H$46,$H$47, $H$48, $K$40, $K$41, $K$42, $K$43, $K$44, $K$45, $K$46, $K$47, $K$48) -> 2.116020775 | N22: =$E$6*crrbinomialbermudan_n("b","c", $E$4, $E$5, $H$48/360, $C$22, $C$22,N$15, 100,$H$40, $H$41, $H$42, $H$43,$H$44, $H$45, $H$46,$H$47, $H$48, $K$40, $K$41, $K$42, $K$43, $K$44, $K$45, $K$46, $K$47, $K$48) -> 2.245818565 | O22: =$E$6*crrbinomialbermudan_n("b","c", $E$4, $E$5, $H$48/360, $C$22, $C$22,O$15, 100,$H$40, $H$41, $H$42, $H$43,$H$44, $H$45, $H$46,$H$47, $H$48, $K$40, $K$41, $K$42, $K$43, $K$44, $K$45, $K$46, $K$47, $K$48) -> 2.371414992
C23: =C22+$E$12 -> 0.02 | D23: =$E$6*crrbinomialbermudan_n("b","c", $E$4, $E$5, $H$48/360, $C$23, $C$23,D$15, 100,$H$40, $H$41, $H$42, $H$43,$H$44, $H$45, $H$46,$H$47, $H$48, $K$40, $K$41, $K$42, $K$43, $K$44, $K$45, $K$46, $K$47, $K$48) -> 1.038258997 | E23: 1.160540401 | F23: 1.295684902 | G23: 1.435101105 | H23: 1.57700824 | I23: 1.717922344 | K23: =$E$6*crrbinomialbermudan_n("b","c", $E$4, $E$5, $H$48/360, $C$23, $C$23,K$15, 100,$H$40, $H$41, $H$42, $H$43,$H$44, $H$45, $H$46,$H$47, $H$48, $K$40, $K$41, $K$42, $K$43, $K$44, $K$45, $K$46, $K$47, $K$48) -> 1.856443996 | L23: =$E$6*crrbinomialbermudan_n("b","c", $E$4, $E$5, $H$48/360, $C$23, $C$23,L$15, 100,$H$40, $H$41, $H$42, $H$43,$H$44, $H$45, $H$46,$H$47, $H$48, $K$40, $K$41, $K$42, $K$43, $K$44, $K$45, $K$46, $K$47, $K$48) -> 1.993028225 | M23: =$E$6*crrbinomialbermudan_n("b","c", $E$4, $E$5, $H$48/360, $C$23, $C$23,M$15, 100,$H$40, $H$41, $H$42, $H$43,$H$44, $H$45, $H$46,$H$47, $H$48, $K$40, $K$41, $K$42, $K$43, $K$44, $K$45, $K$46, $K$47, $K$48) -> 2.126218879 | N23: =$E$6*crrbinomialbermudan_n("b","c", $E$4, $E$5, $H$48/360, $C$23, $C$23,N$15, 100,$H$40, $H$41, $H$42, $H$43,$H$44, $H$45, $H$46,$H$47, $H$48, $K$40, $K$41, $K$42, $K$43, $K$44, $K$45, $K$46, $K$47, $K$48) -> 2.255399754 | O23: =$E$6*crrbinomialbermudan_n("b","c", $E$4, $E$5, $H$48/360, $C$23, $C$23,O$15, 100,$H$40, $H$41, $H$42, $H$43,$H$44, $H$45, $H$46,$H$47, $H$48, $K$40, $K$41, $K$42, $K$43, $K$44, $K$45, $K$46, $K$47, $K$48) -> 2.380518103
C24: =C23+$E$12 -> 0.0225 | D24: =$E$6*crrbinomialbermudan_n("b","c", $E$4, $E$5, $H$48/360, $C$24, $C$24,D$15, 100,$H$40, $H$41, $H$42, $H$43,$H$44, $H$45, $H$46,$H$47, $H$48, $K$40, $K$41, $K$42, $K$43, $K$44, $K$45, $K$46, $K$47, $K$48) -> 1.049030785 | E24: 1.173131732 | F24: 1.308144942 | G24: 1.447423008 | H24: 1.589375408 | I24: 1.72943575 | K24: =$E$6*crrbinomialbermudan_n("b","c", $E$4, $E$5, $H$48/360, $C$24, $C$24,K$15, 100,$H$40, $H$41, $H$42, $H$43,$H$44, $H$45, $H$46,$H$47, $H$48, $K$40, $K$41, $K$42, $K$43, $K$44, $K$45, $K$46, $K$47, $K$48) -> 1.867828438 | L24: =$E$6*crrbinomialbermudan_n("b","c", $E$4, $E$5, $H$48/360, $C$24, $C$24,L$15, 100,$H$40, $H$41, $H$42, $H$43,$H$44, $H$45, $H$46,$H$47, $H$48, $K$40, $K$41, $K$42, $K$43, $K$44, $K$45, $K$46, $K$47, $K$48) -> 2.003930946 | M24: =$E$6*crrbinomialbermudan_n("b","c", $E$4, $E$5, $H$48/360, $C$24, $C$24,M$15, 100,$H$40, $H$41, $H$42, $H$43,$H$44, $H$45, $H$46,$H$47, $H$48, $K$40, $K$41, $K$42, $K$43, $K$44, $K$45, $K$46, $K$47, $K$48) -> 2.136456072 | N24: =$E$6*crrbinomialbermudan_n("b","c", $E$4, $E$5, $H$48/360, $C$24, $C$24,N$15, 100,$H$40, $H$41, $H$42, $H$43,$H$44, $H$45, $H$46,$H$47, $H$48, $K$40, $K$41, $K$42, $K$43, $K$44, $K$45, $K$46, $K$47, $K$48) -> 2.265098638 | O24: =$E$6*crrbinomialbermudan_n("b","c", $E$4, $E$5, $H$48/360, $C$24, $C$24,O$15, 100,$H$40, $H$41, $H$42, $H$43,$H$44, $H$45, $H$46,$H$47, $H$48, $K$40, $K$41, $K$42, $K$43, $K$44, $K$45, $K$46, $K$47, $K$48) -> 2.389595143
C26: Ratios of Valuation Matrix | D26: Annualised Volatility
C27: Risk Free Rate | D27: =D15 -> 0.2 | E27: =E15 -> 0.25 | F27: 0.3 | G27: 0.35 | H27: 0.4 | I27: 0.45 | K27: 0.5 | L27: 0.55 | M27: 0.6 | N27: 0.65 | O27: 0.7
C28: =C16 -> 0.0025 | D28: =D16/$I$20 -> 0.578304578 | E28: =E16/$I$20 -> 0.6441776152 | F28: 0.7217113721 | G28: 0.8041673727 | H28: 0.888332959 | I28: 0.9729081892 | K28: 1.057493302 | L28: 1.140499984 | M28: 1.221135431 | N28: 1.300111912 | O28: 1.376769931
C29: =C17 -> 0.005 | D29: =D17/$I$20 -> 0.5830794457 | E29: 0.6500562727 | F29: 0.728017874 | G29: 0.8107638407 | H29: 0.8949818754 | I29: 0.9794615924 | K29: 1.063987485 | L29: 1.146565304 | M29: 1.226984118 | N29: 1.305757301 | O29: 1.382121132
C30: 0.0075 | D30: 0.5880871018 | E30: 0.6560805581 | F30: 0.7346784641 | G30: 0.8175359718 | H30: 0.9016371361 | I30: 0.9862447152 | K30: 1.070466148 | L30: 1.152614535 | M30: 1.232938623 | N30: 1.311463958 | O30: 1.387457124
C31: 0.01 | D31: 0.5931470665 | E31: 0.6625876671 | F31: 0.741545368 | G31: 0.8243147361 | H31: 0.9084259038 | I31: 0.9930909159 | K31: 1.0769288 | L31: 1.15866243 | M31: 1.238958051 | N31: 1.317174265 | O31: 1.392790427
C32: 0.0125 | D32: 0.598864964 | E32: 0.6690607209 | F32: 0.7484516114 | G32: 0.8312074667 | H32: 0.9152911905 | I32: 1 | K32: 1.083374956 | L32: 1.164883703 | M32: 1.244974514 | N32: 1.322868994 | O32: 1.398129514
C33: 0.015 | D33: 0.6048283873 | E33: 0.6758132623 | F33: 0.7553946221 | G33: 0.8383044594 | H33: 0.9222783199 | I33: 1.006892691 | K33: 1.089804151 | L33: 1.171218315 | M33: 1.251064513 | N33: 1.328552097 | O33: 1.403471136
C34: 0.0175 | D34: 0.6108281621 | E34: 0.6826065891 | F34: 0.7624996445 | G34: 0.8453809342 | H34: 0.9295449793 | I34: 1.013768343 | K34: 1.096267909 | L34: 1.177619957 | M34: 1.257138596 | N34: 1.334252117 | O34: 1.408869587
C35: 0.02 | D35: 0.6168348978 | E35: 0.6894828955 | F35: 0.7697729238 | G35: 0.8526007922 | H35: 0.9369085357 | I35: 1.020626314 | K35: 1.102922725 | L35: 1.184068103 | M35: 1.263197342 | N35: 1.33994435 | O35: 1.414277791
C36: 0.0225 | D36: 0.6232344709 | E36: 0.6969634687 | F36: 0.7771754966 | G36: 0.8599212966 | H36: 0.9442559321 | I36: 1.027466487 | K36: 1.10968628 | L36: 1.190545465 | M36: 1.26927931 | N36: 1.345706506 | O36: 1.419670506
B38: Ε. | C38: Information reagrding the strike prices and the respective European warrants
C39: Exercise Period | D39: Months from Listing Date | E39: HSF Interest Rate | F39: HSF Spread on Interest Rate | G39: Number of days in Period | H39: Total Number of days | I39: Volatility | K39: Exercise Price | L39: European Warrant Value
C40: 1 | D40: 6 | E40: 0.03 | F40: 0.01 | G40: 180 | H40: 180 | I40: =$M$5 -> 0.45 | J40: =$E$5*(1+(E40+F40)*G40/360) -> 0.4488 | K40: =J40 -> 0.4488 | L40: =GBlackScholes("c",$E$4, K40, H40/360,$M$4, $M$4, I40) -> 0.1424958632
C41: 2 | D41: 12 | E41: 0.03 | F41: 0.01 | G41: 360 | H41: =D41*30 -> 360 | I41: 0.45 | J41: =$E$5*(1+(E41+F41)*G41/360) -> 0.4576 | K41: 0.4576 | L41: 0.1600430436
C42: 3 | D42: 18 | E42: 0.03 | F42: 0.02 | G42: 180 | H42: 540 | I42: 0.45 | J42: =$E$5*(1+(E40+F40)+(F42+E42)*G42/360) -> 0.4686 | K42: 0.4686 | L42: 0.1734899766
C43: 4 | D43: 24 | E43: 0.03 | F43: 0.02 | G43: 360 | H43: 720 | I43: 0.45 | J43: =$E$5*(1+(E40+F40)+(F43+E43)*G43/360) -> 0.4796 | K43: 0.4796 | L43: 0.1851676872
C44: 5 | D44: 30 | E44: 0.03 | F44: 0.03 | G44: 180 | H44: 900 | I44: 0.45 | J44: =$E$5*(1+(E40+F40)+(E42+F42)+(F44+E44)*G44/360) -> 0.4928 | K44: 0.4928 | L44: 0.1946100008
C45: 6 | D45: 36 | E45: 0.03 | F45: 0.03 | G45: 360 | H45: 1080 | I45: 0.45 | J45: =$E$5*(1+(E41+F41)+(E43+F43)+(F45+E45)*G45/360) -> 0.506 | K45: 0.506 | L45: 0.2032501771
C46: 7 | D46: 42 | E46: 0.03 | F46: 0.04 | G46: 180 | H46: 1260 | I46: 0.45 | J46: =$E$5*(1+(E40+F40)+(E42+F42)+(E44+F44)+(F46+E46)*G46/360) -> 0.5214 | K46: 0.5214 | L46: 0.2104285123
C47: 8 | D47: 48 | E47: 0.03 | F47: 0.04 | G47: 360 | H47: 1440 | I47: 0.45 | J47: =$E$5*(1+(E41+F41)+(E43+F43)+(E45+F45)+(F47+E47)*G47/360) -> 0.5368 | K47: 0.5368 | L47: 0.2172089589
C48: 9 | D48: 54 | E48: 0.03 | F48: 0.05 | G48: 180 | H48: 1620 | I48: 0.45 | J48: =$E$5*(1+(E40+F40)+(E42+F42)+(E44+F44)+(E46+F46)+(F48+E48)*G48/360) -> 0.5544 | K48: 0.5544 | L48: 0.2229344681
